Cogmind - Beta 16.1 @@@ ROGUE MODE // 2026.02.11 @ 12:40:58 Player: Lintence Result: Destroyed by B-75 Beast with Magnetic Acceleration Cannon Performance ------------- Evolutions (4) 2000 Regions Visited (8) 1600 Robots Destroyed (50) 250 Value Destroyed (903) 903 Prototype IDs (6) 120 Alien Tech Used (0) 0 Bonus (150) 150 TOTAL SCORE: 5023 Bonus ------- Follower Combat Kills 150 Cogmind --------- Core Integrity 0/850 Matter 221/300 Energy 100/100 System Corruption 0% Temperature Cool (0) Movement Core (50) Location -6/Factory Parts ------- > --- POWER (2) -------- (None) > --- PROPULSION (6) --- (None) > --- UTILITY (5) ------ Enhanced Optical Array Improved Signal Interpreter System Shield > --- WEAPON (2) ------- (None) > --- INVENTORY (5) ---- Cryofiber Web Hacking Suite Peak State ------------ > --- POWER ------------ Fission Core > --- PROPULSION ------- VSS Leg VSS Leg VSS Leg VSS Leg Cesium-ion Thruster Advanced Surge Thruster > --- UTILITY ---------- Enhanced Optical Array Improved Sensor Array Improved Signal Interpreter Hacking Suite System Shield > --- WEAPON ----------- Greatsword > --- INVENTORY -------- Cryofiber Web Hacking Suite [Rating: 52] Favorites ----------- Power Light Ion Engine Engine Light Ion Engine Power Core Nuclear Core Propulsion VTOL Module Treads Medium Treads Leg Aluminum Leg Hover Unit Improved Airjet Flight Unit VTOL Module Utility Machine Analyzer Device Improved Sensor Array Storage Medium Storage Unit Processor Machine Analyzer Hackware Hacking Suite Weapon Scythe Energy Gun Small Laser Energy Cannon EM Pulse Cannon Ballistic Gun Gauss Rifle Launcher Precision Grenade Launcher Slashing Weapon Scythe Build | -11 -10 -9 -9 -8 -7 -6 -6 -6 ------- Run | Yrd Mat Mat Min Mat Fac Fac Was Fac Slots Evolved 8 | . . 2 . 2 2 2 . . Power 1 | . . . . . . 1 . . Propulsion 4 | . . . . 2 2 . . . Utility 3 | . . 2 . . . 1 . . Weapon . | . . . . . . . . . Parts Attached 75 | 6 1 17 2 15 17 9 2 6 Power 11 | 1 . 3 . 1 4 2 . . Engine 6 | 1 . 3 . 1 1 . . . Core 5 | . . . . . 3 2 . . Reactor . | . . . . . . . . . Propulsion 30 | 2 . 5 2 6 6 3 1 5 Treads 1 | . . . . . . . . 1 Leg 13 | 2 . 5 2 . . . . 4 Wheel . | . . . . . . . . . Hover 1 | . . . . . 1 . . . Flight 15 | . . . . 6 5 3 1 . Utility 21 | 1 1 4 . 5 6 3 1 . Device 9 | . 1 1 . 3 4 . . . Storage 2 | 1 . 1 . . . . . . Processor 8 | . . 2 . 2 2 1 1 . Hackware 2 | . . . . . . 2 . . Protection . | . . . . . . . . . Artifact . | . . . . . . . . . Weapon 13 | 2 . 5 . 3 1 1 . 1 Energy Gun 5 | 2 . 3 . . . . . . Energy Cannon 2 | . . . . 2 . . . . Ballistic Gun 1 | . . . . . . . . 1 Ballistic Cannon . | . . . . . . . . . Launcher 2 | . . 1 . . 1 . . . Special Weapon . | . . . . . . . . . Impact Weapon . | . . . . . . . . . Slashing Weapon 3 | . . 1 . 1 . 1 . . Piercing Weapon . | . . . . . . . . . Special Melee Weapon . | . . . . . . . . . Unidentified Prototypes 6 | . . 2 . . 3 . 1 . Corrupted Parts 1 | . . . 1 . . . . . System Corruption 1 | . . . 1 . . . . . Parts Lost 30 | . . 8 . 2 2 6 . 12 Power 3 | . . 2 . . . . . 1 Propulsion 18 | . . 3 . . 2 6 . 7 Utility 4 | . . 1 . 1 . . . 2 Weapon 5 | . . 2 . 1 . . . 2 Highest Loss Streak 12 | . . 7 . 2 1 6 . 12 To Critical Strikes . | . . . . . . . . . Average Backups 5 | . 2 8 9 4 4 4 4 2 Power . | . 1 . 1 1 1 . 1 . Propulsion 1 | . . 5 5 . . . . . Utility 1 | . . 1 1 1 2 3 2 2 Weapon . | . 1 . 2 1 . . . . Tool/Special . | . . . . . . . . . Unused Backups 6 | . . 1 . 1 1 1 . 2 Power 1 | . . . . . 1 . . . Propulsion 1 | . . . . 1 . . . . Utility 4 | . . 1 . . . 1 . 2 Weapon . | . . . . . . . . . Tool/Special . | . . . . . . . . . Average Slot Usage (%) 91 | . 91 96 100 96 99 84 44 64 Engine 6 | . 14 9 11 9 1 5 . . Core 2 | . . . . . 5 4 . 3 Leg 10 | . 28 21 22 . . . . 16 Flight 20 | . . . . 34 45 34 11 10 Device 10 | . 5 9 11 14 14 8 6 4 Storage 4 | . 14 11 11 . . . . . Processor 16 | . . 21 22 21 15 13 13 13 Hackware 2 | . . . . . . 9 13 11 Energy Gun 7 | . 28 13 22 3 . . . . Launcher 2 | . . . . 1 7 . . . Slashing Weapon 5 | . . 7 . 5 7 5 . 2 Peak Build Rating 52 | 6 8 19 19 25 37 50 34 52 Average Rating 23 | 4 6 13 19 23 32 40 27 38 On Entrance 18 | . 6 8 19 19 24 37 21 28 Avg Prop Armor Cover (%) 12 | . . . . . 3 . 20 14 Naked Turns . | . . . . . . . . . Heaviest Build 24 | 11 12 24 24 20 21 24 1 16 Greatest Support 48 | 20 20 26 26 22 26 30 5 48 Greatest Overweight (x) 1 | 1 . 1 . . . . . . Average Overweight (x) . | . . . . . . . . . Largest Inventory Capacity 10 | 8 8 10 10 10 5 5 5 5 Average Capacity 6 | 7 8 9 10 5 5 5 5 5 Most Carried 10 | 2 6 10 10 9 5 5 5 5 Average Carried 5 | 1 2 8 9 4 4 4 4 2 Final Capacity 10 | 8 8 10 10 5 5 5 5 5 Final Carried 10 | 2 6 9 10 5 5 5 5 2 Class Distribution -------------------- 25% | Scavenger-Mutant 22% | Scavenger-Scout 17% | Mutant 11% | Scavenger-Sprinter 9% | Sprinter 8% | Hacker-Scout Dominant Class ---------------- Mutant | -10/Materials Scavenger-Mutant | -9/Materials Scavenger-Mutant | -9/Mines Sprinter | -8/Materials Scavenger-Scout | -7/Factory Hacker-Scout | -6/Factory Hacker-Scout | -6/Waste Hacker-Assassin | -6/Factory Resources | -11 -10 -9 -9 -8 -7 -6 -6 -6 ----------- Run | Yrd Mat Mat Min Mat Fac Fac Was Fac Matter Collected 1070 | 175 95 168 87 18 266 246 . 15 Remotely . | . . . . . . . . . Salvage Created 1664 | . 176 723 132 121 266 246 . . Parts 106 | . 17 36 6 9 27 11 . . Haulers Intercepted 6 | . 1 3 . 1 . 1 . . Recyclers Shooed 1 | . . . . . 1 . . . Parts Field Recycled . | . . . . . . . . . Retrieved Matter . | . . . . . . . . . Parts Self-Destructed . | . . . . . . . . . Prevented . | . . . . . . . . . Parts Restored . | . . . . . . . . . Kills | -11 -10 -9 -9 -8 -7 -6 -6 -6 ------- Run | Yrd Mat Mat Min Mat Fac Fac Was Fac Combat Hostiles Destroyed 26 | . 1 15 2 4 4 . . . Melee 7 | . . 7 . . . . . . Guns 7 | . 1 4 2 . . . . . AOE 12 | . . 4 . 4 4 . . . Classes Destroyed 11 | . 5 5 . 1 . . . . Builder 7 | . 1 1 1 . 4 . . . Tunneler 1 | . 1 . . . . . . . Hauler 6 | . 1 3 . 1 . 1 . . Recycler 3 | . . 1 . . 1 1 . . Mechanic 2 | . 1 1 . . . . . . Operator 3 | . . . . 1 1 1 . . Watcher 2 | . . 1 . 1 . . . . Swarmer 15 | . . 7 . 4 4 . . . Grunt 8 | . 1 5 2 . . . . . Duelist 1 | . . 1 . . . . . . Sentry 2 | . . 2 . . . . . . Best Kill Streak 8 | . 2 8 3 4 6 2 . . Combat Bots Only 5 | . 1 5 2 4 4 . . . Max Kills in Single Turn 4 | . 1 3 1 4 4 1 . . Gunslinging . | . . . . . . . . . Exploded 4 | . . 2 . 4 4 . . . Melee 1 | . . 1 . . . . . . Uniques/NPCs Destroyed . | . . . . . . . . . Combat | -11 -10 -9 -9 -8 -7 -6 -6 -6 -------- Run | Yrd Mat Mat Min Mat Fac Fac Was Fac Hostile Shots Fired 300 | . 8 110 6 28 70 20 . 58 Missed 111 | . 4 27 . 17 38 11 . 14 Hits 189 | . 4 83 6 11 32 9 . 44 Melee 7 | . . 3 . . . . . 4 Projectile 182 | . 4 80 6 11 32 9 . 40 AOE 28 | . . . . . . 3 . 25 Critical Strikes 4 | . . 2 . 1 1 . . . Damage Taken 3450 | . 61 969 93 164 292 368 20 1483 Core 1221 | . 33 175 14 58 66 168 20 687 Absorbed by Shields . | . . . . . . . . . Core Remaining (%) 83 | 100 86 . 52 89 90 . . . Volleys Fired 52 | . 14 25 6 5 1 . . 1 Largest 2 | . 2 2 2 2 1 . . 1 Hottest 126 | . 80 90 90 126 30 . . 28 Shots Fired 89 | . 28 41 12 6 1 . . 1 Gun 78 | . 28 37 12 . . . . 1 Cannon 5 | . . . . 5 . . . . Launcher 6 | . . 4 . 1 1 . . . Special . | . . . . . . . . . Kinetic 1 | . . . . . . . . 1 Thermal 33 | . 14 19 . . . . . . Explosive 6 | . . 4 . 1 1 . . . Electromagnetic 49 | . 14 18 12 5 . . . . Robot Hit Streak 12 | . 6 12 4 5 . . . . Robot Miss Streak 3 | . 3 2 2 . . . . 1 Penetration Max . | . . . . . . . . . Secondary Targets . | . . . . . . . . . Shots Hit Robots 102 | . 18 52 8 11 10 3 . . Core Hits 65 | . 10 27 6 8 11 3 . . Critical Kills . | . . . . . . . . . Critical Parts Destroyed . | . . . . . . . . . Critical Strikes 3 | . 1 1 . . 1 . . . Corrupt 1 | . 1 . . . . . . . Sever 2 | . . 1 . . 1 . . . Melee Attacks 88 | . . 30 . 8 40 10 . . Impact . | . . . . . . . . . Slashing 88 | . . 30 . 8 40 10 . . Piercing . | . . . . . . . . . Sneak Attacks 13 | . . 2 . 2 6 3 . . Combat Hostiles . | . . . . . . . . . Follow-up Attacks . | . . . . . . . . . Damage Inflicted 3654 | . 224 1619 117 676 795 223 . . Guns 646 | . 224 305 117 . . . . . Cannons 121 | . . . . 121 . . . . Explosions 1004 | . . 546 . 271 187 . . . Melee 1883 | . . 768 . 284 608 223 . . Ramming . | . . . . . . . . . Kinetic . | . . . . . . . . . Thermal 338 | . 118 155 . 65 . . . . Explosive 939 | . . 546 . 206 187 . . . Electromagnetic 494 | . 106 150 117 121 . . . . Impact . | . . . . . . . . . Slashing 1883 | . . 768 . 284 608 223 . . Piercing . | . . . . . . . . . Highest Corruption 1 | . . . 1 . . . . . Average Corruption 1 | . . . 1 . . . . . Corruption Purged . | . . . . . . . . . Corruption Blocked . | . . . . . . . . . Overload Shots . | . . . . . . . . . Overflow Damage 200 | . . 65 . 34 101 . . . Projectiles . | . . . . . . . . . Explosions 52 | . . 27 . 25 . . . . Melee 148 | . . 38 . 9 101 . . . Knockbacks . | . . . . . . . . . Impact . | . . . . . . . . . Kinetic . | . . . . . . . . . Secondary . | . . . . . . . . . Self-Inflicted Damage 59 | . . 59 . . . . . . Shots 3 | . . 3 . . . . . . Rammed . | . . . . . . . . . Targets Rammed . | . . . . . . . . . Kicked . | . . . . . . . . . Crushed . | . . . . . . . . . Highest Temperature 261 | . 99 48 162 63 156 261 . . Average Temperature 43 | . 33 18 74 23 39 70 . . Received Heat Transfer 644 | . 36 231 51 54 42 105 9 116 Effects 1 | . . . . . . 1 . . Interference 1 | . . . . . . 1 . . Siege Activations . | . . . . . . . . . Martial Activations . | . . . . . . . . . Shielding Activations . | . . . . . . . . . Robots Disrupted . | . . . . . . . . . Combat Hostiles . | . . . . . . . . . Robots Corrupted . | . . . . . . . . . Combat Hostiles . | . . . . . . . . . Parts Fried 2 | . 1 . 1 . . . . . Impact Corruptions . | . . . . . . . . . Robots Melted . | . . . . . . . . . Combat Hostiles . | . . . . . . . . . Parts Melted . | . . . . . . . . . Heat Transferred 675 | . 275 350 . 50 . . . . Parts Sabotaged . | . . . . . . . . . Parts Stolen . | . . . . . . . . . Parts Stripped . | . . . . . . . . . Power Chain Reactions 1 | . . . . 1 . . . . Alert | -11 -10 -9 -9 -8 -7 -6 -6 -6 ------- Run | Yrd Mat Mat Min Mat Fac Fac Was Fac Maximum Alert Level 1 | . . 1 . . 1 . . . Low Security (%) 96 | 100 100 90 100 100 98 100 100 100 Level 1 3 | . . 9 . . 1 . . . Level 2 . | . . . . . . . . . Level 3 . | . . . . . . . . . Level 4 . | . . . . . . . . . Level 5 . | . . . . . . . . . High Security . | . . . . . . . . . Max Security . | . . . . . . . . . Peak Influence 314 | . 40 314 143 152 263 151 59 3 Initial 128 | . . 15 118 51 63 128 52 3 Average 75 | . 9 52 119 65 118 129 40 . Influence Increases 1631 | . 67 589 55 198 498 181 43 . Destroy 0b10 Robot/C 520 | . 20 300 40 80 80 . . . Destroy 0b10 Robot/NC 120 | . 20 35 5 15 30 15 . . Destroy Leader 106 | . 12 58 10 14 10 2 . . Successful Hack 55 | . . 9 . . 22 24 . . Disable Machine 45 | . . . . . 15 30 . . Destroy Structure 110 | . . 22 . 14 26 5 43 . Partial Spotted 180 | . . . . 30 135 15 . . Lose Combat Pursuer 495 | . 15 165 . 45 180 90 . . Influence Decreases 1631 | . 30 320 228 192 374 295 187 5 Entered New Map 602 | . . 22 188 82 76 135 97 2 Time Decay 799 | . 30 218 40 90 278 100 40 3 Lost Part 180 | . . 80 . 20 20 60 . . Lost Ally 50 | . . . . . . . 50 . Squads Dispatched 16 | . 1 2 . 3 7 3 . . Investigation 4 | . . . . . 3 1 . . Extermination 2 | . . . . . 2 . . . Reinforcement 6 | . 1 2 . 2 1 . . . Assault 2 | . . . . . . 2 . . Garrison 2 | . . . . 1 1 . . . Intercept . | . . . . . . . . . Searches Triggered . | . . . . . . . . . Construction Impeded . | . . . . . . . . . Haulers Reinforced . | . . . . . . . . . Active Scanning Responses . | . . . . . . . . . Cargo Convoy Interrupts . | . . . . . . . . . Stealth | -11 -10 -9 -9 -8 -7 -6 -6 -6 --------- Run | Yrd Mat Mat Min Mat Fac Fac Was Fac Distress Signals 7 | . . 2 . 2 2 1 . . Communications Jammed . | . . . . . . . . . Distress Signals . | . . . . . . . . . Times Spotted 124 | . 3 35 2 28 23 10 6 17 Peak Tracking Total 8 | . 4 7 2 8 6 8 3 7 Tactical Retreats 22 | . 1 5 . 6 6 2 . 2 ECM-based Alert Blocks 15 | . . . . 15 . . . . Traps | -11 -10 -9 -9 -8 -7 -6 -6 -6 ------- Run | Yrd Mat Mat Min Mat Fac Fac Was Fac Traps Triggered 1 | . . . . . . 1 . . Indirectly . | . . . . . . . . . Trap Hack Attempts . | . . . . . . . . . Triggered . | . . . . . . . . . Disarmed . | . . . . . . . . . Reprogrammed . | . . . . . . . . . Reused . | . . . . . . . . . Traps Extracted . | . . . . . . . . . Installed . | . . . . . . . . . Triggered . | . . . . . . . . . Machines | -11 -10 -9 -9 -8 -7 -6 -6 -6 ---------- Run | Yrd Mat Mat Min Mat Fac Fac Was Fac Machines Disabled 3 | . . . . . 1 2 . . Max in Single Turn 1 | . . . . . 1 1 . . Garrison Access 3 | . . . . . 1 2 . . Machines Repaired . | . . . . . . . . . Machines Dismantled . | . . . . . . . . . Machines Sabotaged . | . . . . . . . . . Overloaded Fab Kills . | . . . . . . . . . Hacking | -11 -10 -9 -9 -8 -7 -6 -6 -6 --------- Run | Yrd Mat Mat Min Mat Fac Fac Was Fac Machines Accessed 16 | . . 3 . 2 7 4 . . Terminals 9 | . . 3 . 2 2 2 . . Fabricators 4 | . . . . . 3 1 . . Repair Stations . | . . . . . . . . . Recycling Units . | . . . . . . . . . Scanalyzers 1 | . . . . . 1 . . . Garrison Access 2 | . . . . . 1 1 . . Total Hacks 30 | . . 4 . 2 16 8 . . Successful 14 | . . 2 . 1 6 5 . . Failed 16 | . . 2 . 1 10 3 . . Catastrophic 3 | . . . . 1 1 1 . . Database Lockouts . | . . . . . . . . . Manual 4 | . . 1 . 1 1 1 . . Terminals 13 | . . 4 . 2 3 4 . . Fabricators 12 | . . . . . 9 3 . . Repair Stations . | . . . . . . . . . Recycling Units . | . . . . . . . . . Scanalyzers 3 | . . . . . 3 . . . Garrison Access 2 | . . . . . 1 1 . . Terminal Hacks 5 | . . 2 . 1 . 2 . . Locate Traps 1 | . . . . . . 1 . . Hauler Manifests 2 | . . 1 . 1 . . . . Registered Prototypes 1 | . . 1 . . . . . . Zone Layout 1 | . . . . . . 1 . . Fabricator Hacks 5 | . . . . . 3 2 . . Load Schematic 4 | . . . . . 3 1 . . Build 1 | . . . . . . 1 . . Repair Station Hacks . | . . . . . . . . . Recycling Unit Hacks . | . . . . . . . . . Scanalyzer 2 | . . . . . 2 . . . Insert Component 1 | . . . . . 1 . . . Analyze 1 | . . . . . 1 . . . Garrison Access Hacks 2 | . . . . . 1 1 . . Seal Access 2 | . . . . . 1 1 . . Unauthorized Hacks . | . . . . . . . . . Terminals . | . . . . . . . . . Fabricators . | . . . . . . . . . Repair Stations . | . . . . . . . . . Recycling Units . | . . . . . . . . . Scanalyzers . | . . . . . . . . . Garrison Access . | . . . . . . . . . Data Cores Recovered . | . . . . . . . . . Used . | . . . . . . . . . Hacking Detections 12 | . . 2 . 2 5 3 . . Full Trace Events 4 | . . . . . 3 1 . . Feedback Events . | . . . . . . . . . Feedback Blocked . | . . . . . . . . . Robot Schematics Acquired . | . . . . . . . . . Robots Built . | . . . . . . . . . Authchips . | . . . . . . . . . Time . | . . . . . . . . . Total Robot Build Rating . | . . . . . . . . . Part Schematics Acquired 1 | . . . . . 1 . . . Parts Built 2 | . . . . . . 2 . . Authchips . | . . . . . . . . . Time 36 | . . . . . . 36 . . Total Part Build Rating 6 | . . . . . . 6 . . Part Studies Acquired . | . . . . . . . . . Parts Repaired . | . . . . . . . . . Time . | . . . . . . . . . Parts Recycled . | . . . . . . . . . Recycled Matter . | . . . . . . . . . Retrieved Matter . | . . . . . . . . . Retrieved Components . | . . . . . . . . . Parts Scanalyzed 1 | . . . . . 1 . . . Part Schematics Acquired 1 | . . . . . 1 . . . Parts Damaged . | . . . . . . . . . Bothacking | -11 -10 -9 -9 -8 -7 -6 -6 -6 ------------ Run | Yrd Mat Mat Min Mat Fac Fac Was Fac Used RIF Installer . | . . . . . . . . . Robots Hacked . | . . . . . . . . . Non-combat . | . . . . . . . . . Combat . | . . . . . . . . . Robot Hacks Applied . | . . . . . . . . . Relay Couplers Released 2 | . . . . . . 2 . . Machine Destruction 2 | . . . . . . 2 . . Fabnet Peak Effective % . | . . . . . . . . . Robots Rewired . | . . . . . . . . . Allies Hacked . | . . . . . . . . . Hacks Repelled . | . . . . . . . . . Allies | -11 -10 -9 -9 -8 -7 -6 -6 -6 -------- Run | Yrd Mat Mat Min Mat Fac Fac Was Fac Total Allies 19 | . . . . . . . 19 . Largest Group 19 | . . . . . . . 19 . Highest-Rated Group 669 | . . . . . . . 669 . Highest-Rated Ally 50 | . . . . . . . 50 . Total Orders . | . . . . . . . . . Ally Attacks 113 | . . . . . . . 113 . Total Damage 6351 | . . . . . . . 6351 . Kills 12 | . . . . . . . 12 . Allies Corrupted . | . . . . . . . . . Allies Melted . | . . . . . . . . . Intel | -11 -10 -9 -9 -8 -7 -6 -6 -6 ------- Run | Yrd Mat Mat Min Mat Fac Fac Was Fac Active Infowar (turns) 1969 | . 75 605 93 188 616 209 89 94 Optics 1187 | . . . . 179 616 209 89 94 Sensors 707 | . . . . 11 361 194 86 55 Structural 585 | . . . . 13 504 68 . . Traps 202 | . . . . . 196 6 . . Seismic 571 | . 75 496 . . . . . . T.N.C. 772 | . . 604 93 75 . . . . Machine Analysis 1142 | . . 605 93 188 256 . . . ECM 125 | . . . . 121 4 . . . Robot Analysis Total . | . . . . . . . . . Derelict Logs Recovered . | . . . . . . . . . Drone Launches . | . . . . . . . . . Drone Recoveries . | . . . . . . . . . Exploration | -11 -10 -9 -9 -8 -7 -6 -6 -6 ------------- Run | Yrd Mat Mat Min Mat Fac Fac Was Fac Turns Passed 2144 | 59 191 605 93 188 616 209 89 94 Spaces Moved 3178 | 38 112 308 57 384 1472 479 235 93 Core 27 | 4 . . . . . . . 23 Treads 2 | . . . . . . . . 2 Legs 569 | 34 112 308 57 . . . . 58 Wheels . | . . . . . . . . . Hover . | . . . . . . . . . Flight 2580 | . . . . 384 1472 479 235 10 Fastest Speed 20 | 50 120 120 120 29 20 20 35 35 Average Speed 41 | 129 120 121 120 29 21 22 35 75 Slowest Speed 190 | 190 120 190 120 29 27 35 35 160 Overloaded Moves . | . . . . . . . . . Propulsion Burnouts . | . . . . . . . . . Robots Hopped 12 | . . . . 5 5 2 . . Potential Cave-ins . | . . . . . . . . . Cave-ins Triggered . | . . . . . . . . . Exploration Rate (%) 33 | 3 30 31 14 51 51 22 92 7 Regions Visited 8 Branch Regions 1 Pre-discovered Areas . | . . . . . . . . . Known Exits Taken 1 | . . . . . 1 . . . Unknown Exits Taken 5 | 1 1 1 1 1 . . . . Scrap Searched . | . . . . . . . . . Spaces Dug 29 | . . . . . 24 5 . . Terrain Destroyed 68 | . . 24 . 13 26 5 . . Melee 29 | . . . . . 24 5 . . Projectile . | . . . . . . . . . AOE 39 | . . 24 . 13 2 . . . Terrain Rammed . | . . . . . . . . . Walls Destroyed . | . . . . . . . . . Machines Disabled . | . . . . . . . . . Actions | -11 -10 -9 -9 -8 -7 -6 -6 -6 --------- Run | Yrd Mat Mat Min Mat Fac Fac Was Fac Total 3769 | 45 140 451 70 437 1708 565 241 112 Wait 272 | . 10 49 3 6 145 49 . 10 Move 3149 | 37 111 307 56 375 1461 475 234 93 Hop 10 | . . . . 3 5 2 . . Pick Up 35 | 2 4 9 1 6 9 3 1 . Fast Attach 36 | 6 1 7 . 3 7 4 2 6 Attach 26 | . . 9 . 5 6 3 1 2 Detach 14 | . . 3 . 2 4 4 1 . Swap 39 | . . 6 2 12 14 5 . . Drop 48 | . . 6 2 12 16 10 2 . Fire 52 | . 14 25 6 5 1 . . 1 Melee 88 | . . 30 . 8 40 10 . . Ram . | . . . . . . . . . Kick . | . . . . . . . . . Crush . | . . . . . . . . . Escape Stasis . | . . . . . . . . . Rewire . | . . . . . . . . . Trap . | . . . . . . . . . Miscellaneous . | . . . . . . . . . Route ------- -11/Scrapyard -10/Materials (discovered 2 exits: *Mat / [*Min]) -9/Materials -9/Mines -8/Materials -7/Factory (discovered 3 exits: *Fac / *Low x2) -6/Factory -6/Waste -6/Factory History --------- Turn | Location | Event 31 | -11/Scrapyard | Discovered new exit (range 15) 60 | -11/Scrapyard | Entered Materials 153 | -10/Materials | Discovered new exit (range 15) 217 | -10/Materials | Discovered new exit (range 16) 251 | -10/Materials | Entered another Materials area 251 | -9/Materials | Evolved 2 slots: Utility x2 311 | -9/Materials | Build established: Mutant 688 | -9/Materials | Build established: Scavenger-Mutant 726 | -9/Materials | Discovered new exit (range 13) 855 | -9/Materials | Lost 7 parts (1p3n1u2w) 856 | -9/Materials | Entered Mines 901 | -9/Mines | Discovered new exit (range 11) 949 | -9/Mines | Entered Materials 949 | -8/Materials | Evolved 2 slots: Propulsion x2 1108 | -8/Materials | Discovered new exit (range 19) 1113 | -8/Materials | Garrison activated, responded to threat 1137 | -8/Materials | Entered Factory 1137 | -7/Factory | Evolved 2 slots: Propulsion x2 1331 | -7/Factory | Discovered new exit (range 8) 1340 | -7/Factory | Identified exit to Lower Caves 1431 | -7/Factory | Discovered exit to Lower Caves (range 19) 1553 | -7/Factory | Garrison activated, responded to threat 1677 | -7/Factory | Build established: Scavenger-Scout 1750 | -7/Factory | Discovered new exit (range 15) 1752 | -7/Factory | Identified exit to Factory 1753 | -7/Factory | Entered another Factory area 1753 | -6/Factory | Evolved 2 slots: Power x1, Utility x1 1858 | -6/Factory | Fabricated Cesium-ion Thruster (x2) 1962 | -6/Factory | Sucked down chute 1962 | -6/Factory | Entered Waste 1963 | -6/Waste | Met a frightened Derelict 1964 | -6/Waste | Lost 6 parts (6n) 1970 | -6/Waste | Spotted C-40 Crusher 1974 | -6/Waste | Spotted C-40 Crusher 1981 | -6/Waste | Spotted C-40 Crusher 1982 | -6/Waste | Spotted C-40 Crusher 1994 | -6/Waste | Warlord forces began an assault 2014 | -6/Waste | Allies destroyed C-40 Crusher 2015 | -6/Waste | Spotted C-40 Crusher 2015 | -6/Waste | Allies destroyed C-40 Crusher 2016 | -6/Waste | Spotted C-40 Crusher 2020 | -6/Waste | Allies destroyed C-40 Crusher 2040 | -6/Waste | Discovered new exit (range 10) 2043 | -6/Waste | Identified exit to Factory 2046 | -6/Waste | Found Prototype Processor 2046 | -6/Waste | Identified Exp. Target Analyzer 2051 | -6/Waste | Entered Factory 2064 | -6/Factory | Lost 3 allies 2111 | -6/Factory | Spotted B-75 Beast 2128 | -6/Factory | Core integrity fell below 50% 2139 | -6/Factory | Core integrity fell below 20% 2145 | -6/Factory | Destroyed by B-75 Beast with Magnetic Acceleration Cannon Last Messages --------------- 02126_ The unstable cave ceiling collapses. 02126_ Gauss Rifle destroyed. 02126_ Hacking Suite destroyed. 02131_ Acquired Med. Treads. 02133_ K-01 Serf cleans the Terminal. 02134_ The unstable cave ceiling collapses. 02135_ Med. Treads destroyed. 02135_ U-05 Engineer lays Concrete. 02136_ U-05 Engineer builds a Wall. 02136_ U-05 Engineer lays Concrete. 02138_ Fusion Modulator explodes. 02138_ The unstable cave ceiling collapses. 02138_ Terminal disabled. 02138_ Fusion Modulator explodes. 02138_ K-01 Serf destroyed. 02138_ U-05 Engineer lays Concrete. 02140_ K-01 Serf collects debris. 02141_ U-05 Engineer lays Concrete. 02142_ Acquired 6 matter. 02145_ U-05 Engineer lays Concrete. Map ----- +----------------------------------------------------+ | ?????????????????????????????????????????????????? | | ?????????????????????????????????????????????????? | | ?????????????????????????????????????????????????? | | ?????????????????????????????????????????????????? | | ?????????????????????????????????????????????????? | | ?????????????????????????????????????????????????? | | ?????????????????????????????????????????????????? | | ?????????????????????????????????????????????????? | | ?????????????????????????????????????????????????? | | ?????????????????????????????????????????????????? | | ?????????????????????????????????????????????????? | | ###?????????????????????######???????????????????? | | #?????????????# ?????? #???????????????????? | | #????????????## ?????" #???????????????????? | | #??????????? ## """""" #???????????????????? | | #??????????? ## """""" #???????????????????? | | #??????????? ## """""" #???????????????????? | | #????####### ## #???????????????????? | | #????# ## """""" #???????????????????? | | #????# ## """""" #???????????????????? | | #????# t """""" #???????????????????? | | #????# #??# """""" #???????????????????? | | ?????# #??# #???????????????????? | | ###### #### #???????????????????? | | # ### # #T ####; ################???????? | | uu @ ??? | | R ??? | | d """ """" ""?????? | | u d "T" """"????????? | | """?????????? | | ; k### """?????????? | | "" # """?????????? | | "" #? """?????????? | | "" % " """?????????? | | "" " ?????????? | | "" " ????????? | | "" " u???????? | | "" #;;;; ;;"#########+####???????? | | "" "F" # # ##????????????????????? | | "" " !;;;#### # # #?????????????????????? | | "" """ BB#???#########?????????????????????? | | "" """ BB#?????????????????????????????????? | | "" ###?????????????????????????????????? | | "" #???????????????????????????????????? | | "" ########???????????????????????????????????? | | #??????????????????????????????????????????? | | "" #??????????????????????????????????????????? | | "" #??????????????????????????????????????????? | | "" #? ????????????????????????????????????????? | | "" + ?????????????????????????????????????????? | +----------------------------------------------------+ Best States ------------- Heat Dissipation 37 Energy Generation 28 Energy Capacity 360 Matter Stores 300 Matter Capacity 300 Sight Range 22 Robot Scan Range 15 Terrain Scan Density 10 ECM Strength 1 Additional Mass Support 6 Evasion (%) 72 Offensive Hacking 10 Defensive Hacking 10 Item Schematics ----------------- Cesium-ion Thruster | -7/Factory | Scanalyzed Robot Schematics ------------------ None Fabricated ------------ Cesium-ion Thruster | x2 | -6/Factory Repaired ---------- Nothing Studied --------- None Alien Tech Used ----------------- None Achievements -------------- Sprinter We Love MA Challenges ------------ None Game ------ Seed BladeAntimatterThermoblaster Manual? 0 Play Time 01:13:33 Cumulative 52.8 hours Start 2026.02.11 @ 11:18:48 End 2026.02.11 @ 12:40:58 Sessions 1 Manual Loads 0 Difficulty Rogue Special Mode None Game No. 103 Rogue 103 Adventurer 0 Explorer 0 Win Type - Total 1 Types 1/0/0/0/0/0/0/0/0/0 Lore% 16 Gallery% 30 Achievement% 19 Wizard Run 0 Options --------- Layout 1 ASCII 0 Keyboard 0 Movement Mouse Keybinds 0 Fullscreen 2 Font 20/X11 Map View 50x35 Zoom Use 0% Tactical HUD 1 Map Filters NONE Filters NONE Steam 1 RUN: 4ef2475b-5ddf-4bde-8754-a89b3c64e92a